bitfinex/quotes_BTCUSD_20220205
["timestamp","ask_amount","ask_price","bid_price","bid_amount"]
[1644056001311,0.00074502,41525.0,41522.0,0.52975299]
[1644056001510,0.00074502,41525.0,41524.0,0.04999999]
[1644056001710,0.00074502,41525.0,41524.0,0.42975299]
[1644056001909,0.00074502,41525.0,41524.0,0.52975299]
[1644056002113,0.02170291,41528.0,41524.0,0.52975299]
[1644056002311,0.02170291,41528.0,41527.0,0.04999999]
[1644056002510,0.02170291,41528.0,41527.0,0.09809999]
[1644056003156,0.02114954,41533.0,41527.0,0.09809999]
[1644056003356,0.02114954,41533.0,41529.0,0.2642993]
[1644056003556,0.02114954,41533.0,41530.0,0.0481]
[1644056003756,0.02114954,41533.0,41530.0,0.04831144]
[1644056003957,0.02114954,41533.0,41532.0,0.04999999]
[1644056004157,0.02114954,41533.0,41532.0,0.09809999]
[1644056004358,0.02114954,41533.0,41532.0,0.0481]
[1644056004557,0.02114954,41533.0,41532.0,0.09809999]
[1644056005158,0.00074828,41535.0,41532.0,0.09809999]
[1644056005759,0.01941525,41538.0,41532.0,0.09809999]
[1644056005960,0.00074827,41536.0,41532.0,0.09809999]
[1644056006160,0.00074827,41536.0,41533.0,0.19314394]
[1644056006411,0.00074827,41536.0,41533.0,0.24145538]
[1644056007006,0.01941525,41538.0,41533.0,0.24145538]
[1644056007205,0.00074826,41537.0,41533.0,0.24145538]
[1644056007905,0.00074826,41537.0,41533.0,0.04831144]
[1644056008106,0.28610019,41540.0,41533.0,0.04831144]
[1644056008507,0.00074802,41537.0,41533.0,0.04831144]
[1644056008707,0.331653,41536.0,41533.0,0.04831144]
[1644056008906,0.331653,41536.0,41533.0,0.0481]
[1644056009107,0.00074802,41537.0,41533.0,0.0481]
[1644056009307,0.5473519,41540.0,41533.0,0.0481]
[1644056009507,0.331653,41539.0,41533.0,0.0481]
[1644056009709,0.00074802,41537.0,41533.0,0.0481]
[1644056009914,0.00074802,41537.0,41533.0,0.09831143]
[1644056010552,0.5473519,41540.0,41533.0,0.09831143]
[1644056010753,0.00074802,41537.0,41533.0,0.09831143]
[1644056011154,0.00074802,41537.0,41533.0,0.09809999]
[1644056011354,0.331653,41536.0,41533.0,0.0481]
[1644056012054,0.331653,41536.0,41529.0,0.00021144]
[1644056012255,0.19905605,41531.0,41528.0,0.09809999]
[1644056012460,0.19905605,41531.0,41528.0,0.04831144]
[1644056012654,0.19905605,41531.0,41528.0,0.0481]
[1644056014909,0.0007481,41532.0,41529.0,0.04999999]
[1644056015114,0.0007481,41532.0,41529.0,0.05021143]
[1644056015310,0.02197112,41534.0,41529.0,0.05021143]
[1644056015714,0.00074809,41533.0,41529.0,0.05021143]
[1644056015912,0.26778796,41533.0,41529.0,0.05021143]
[1644056016517,0.26703987,41533.0,41529.0,0.05021143]
[1644056016913,0.26778795,41533.0,41529.0,0.05021143]
[1644056017755,0.26703987,41533.0,41529.0,0.05021143]
[1644056017952,0.26778795,41533.0,41529.0,0.05021143]
[1644056018151,0.26778795,41533.0,41529.0,0.00021144]
[1644056018352,0.26778795,41533.0,41526.0,0.00021144]
[1644056018552,0.26778795,41533.0,41525.0,0.27145774]
[1644056019153,0.28504962,41533.0,41525.0,0.27145774]
[1644056019355,0.0007481,41531.0,41525.0,0.27145774]
[1644056019554,0.0007481,41531.0,41525.0,0.05021143]
[1644056020153,0.57504962,41533.0,41525.0,0.05021143]
[1644056020554,0.00074811,41530.0,41528.0,0.27154099]
[1644056021153,0.00074811,41530.0,41528.0,0.04999999]
[1644056021406,0.57868493,41533.0,41528.0,0.04999999]
[1644056021602,0.0007481,41531.0,41524.0,0.24030327]
[1644056022200,0.0007481,41531.0,41526.0,0.26311457]
[1644056022403,0.0007481,41531.0,41524.0,0.24030327]
[1644056022603,0.30955881,41532.0,41524.0,0.24030327]
[1644056022803,0.04999999,41532.0,41524.0,0.24030327]
[1644056023111,0.00074811,41531.0,41524.0,0.24030327]
[1644056023504,0.00074811,41531.0,41526.0,0.22973951]
[1644056023706,0.00074811,41531.0,41524.0,0.24030327]
[1644056023903,0.04999999,41532.0,41524.0,0.24030327]
[1644056024103,0.00074811,41531.0,41524.0,0.24030327]
[1644056024904,0.04999999,41527.0,41524.0,0.24030327]
[1644056025158,0.00074812,41530.0,41525.0,0.331653]
[1644056025357,0.00074812,41530.0,41524.0,0.24030327]
[1644056026158,0.04999999,41532.0,41527.0,0.19934149]
[1644056026558,0.00074812,41529.0,41527.0,0.19934149]
[1644056027459,0.24,41533.0,41527.0,0.19934149]
[1644056027762,0.00074811,41530.0,41527.0,0.19934149]
[1644056028158,0.00074811,41530.0,41524.0,0.24030327]
[1644056028159,0.04999999,41528.0,41524.0,0.24030327]
[1644056028560,0.50243551,41533.0,41524.0,0.24030327]
[1644056028759,0.24,41533.0,41524.0,0.24030327]
[1644056029007,0.00074813,41528.0,41525.0,0.331653]
[1644056029207,0.00074813,41528.0,41525.0,0.54494318]
[1644056029408,0.00074813,41528.0,41525.0,0.53994318]
[1644056029807,0.30800809,41533.0,41525.0,0.53994318]
[1644056030007,0.30800809,41533.0,41525.0,0.21329018]
[1644056030206,0.00074813,41529.0,41525.0,0.21329018]
[1644056031014,0.2580081,41533.0,41525.0,0.21329018]
[1644056031015,0.04999999,41527.0,41525.0,0.21329018]
[1644056032508,0.00074813,41528.0,41525.0,0.21329018]
[1644056033360,0.0180338,41532.0,41525.0,0.21329018]
[1644056033564,0.04999999,41527.0,41525.0,0.21329018]
[1644056033762,0.04999999,41527.0,41524.0,0.28840327]
[1644056033962,0.04999999,41527.0,41525.0,0.33163]
[1644056034362,0.00074813,41529.0,41524.0,0.28840327]
[1644056034561,0.0180338,41532.0,41524.0,0.28840327]
[1644056034763,0.0180338,41532.0,41525.0,0.27943071]
[1644056034962,0.04999999,41527.0,41525.0,0.27943071]
[1644056035161,0.00074813,41529.0,41524.0,0.0481]
[1644056035764,0.04999999,41527.0,41524.0,0.0481]
[1644056036068,0.04999999,41527.0,41524.0,0.28125304]
[1644056036264,0.04999999,41527.0,41524.0,0.50612578]
[1644056036506,0.04999999,41527.0,41524.0,0.0481]
[1644056037708,0.04999999,41527.0,41524.0,0.2759075]
[1644056037908,0.04999999,41527.0,41524.0,0.04830988]
[1644056038108,0.04999999,41527.0,41524.0,0.00020988]
[1644056038310,0.04999999,41527.0,41523.0,0.26869243]
[1644056039309,0.04999999,41527.0,41523.0,0.53003155]
[1644056039910,0.05079442,41527.0,41523.0,0.53003155]
[1644056040166,0.04999999,41526.0,41523.0,0.59022855]
[1644056040366,0.04999999,41526.0,41523.0,0.53003155]
[1644056040966,0.04999999,41526.0,41523.0,0.26869243]
[1644056042165,0.04999999,41526.0,41523.0,0.47733462]
[1644056042965,0.04999999,41526.0,41523.0,0.83878116]
[1644056043165,0.04999999,41526.0,41524.0,0.38726741]
[1644056044512,0.04959999,41526.0,41525.0,0.0004]
[1644056044711,0.00079443,41527.0,41525.0,0.0004]
[1644056044910,0.00079443,41527.0,41525.0,0.00060988]
[1644056045111,0.00079443,41527.0,41525.0,0.0004]
[1644056045510,0.02054595,41530.0,41525.0,0.0004]
[1644056045711,0.04959999,41527.0,41525.0,0.00060988]
[1644056045913,0.00027,41526.0,41525.0,0.0004]
[1644056046710,0.00027,41526.0,41524.0,0.35705642]
[1644056046911,0.00027,41526.0,41524.0,0.38266005]
[1644056047312,0.00027,41526.0,41523.0,0.4775445]
[1644056047512,0.00027,41526.0,41523.0,0.47733462]
[1644056047757,0.00027,41526.0,41522.0,0.00020988]
[1644056047958,0.00027,41526.0,41521.0,0.04408483]
[1644056048158,0.00027,41526.0,41522.0,0.02581495]
[1644056048358,0.00027,41526.0,41522.0,0.02602483]
[1644056048559,0.00027,41526.0,41523.0,0.060198]
[1644056048758,0.00027,41526.0,41523.0,0.31522761]
[1644056048961,0.00027,41526.0,41523.0,0.25481973]
[1644056049759,0.00027,41526.0,41523.0,0.52215945]
[1644056049959,0.05079443,41527.0,41523.0,0.26733972]
[1644056050360,0.04999999,41527.0,41523.0,0.26733972]
[1644056050561,0.05079442,41527.0,41522.0,0.00020988]
[1644056050759,0.05079442,41527.0,41522.0,0.0481985]
[1644056050959,0.05079442,41527.0,41522.0,0.25487785]
[1644056051157,0.05079442,41527.0,41523.0,0.0481985]
[1644056051414,0.00079443,41527.0,41523.0,0.04840838]
[1644056051614,0.20663714,41536.0,41526.0,0.79999999]
[1644056051815,0.20663714,41543.0,41535.0,0.04999999]
[1644056052016,0.002,41545.0,41543.0,0.23508391]
[1644056052213,0.002,41545.0,41544.0,0.63163]
[1644056052413,0.002,41545.0,41544.0,1.08053]
[1644056052414,0.0001,41545.0,41544.0,1.08053]
[1644056052610,0.001,41548.0,41546.0,0.33163]
[1644056052811,0.001,41548.0,41547.0,1.03052999]
[1644056053011,0.001,41548.0,41547.0,1.08052999]
[1644056053212,0.001,41548.0,41547.0,1.13052999]
[1644056053412,0.001,41548.0,41547.0,1.39957226]
[1644056053811,0.001,41548.0,41547.0,1.41986326]
[1644056054012,0.001,41548.0,41547.0,1.25082099]
[1644056054315,0.001,41548.0,41547.0,1.35082099]
[1644056054813,0.001,41548.0,41547.0,2.35082099]
[1644056055014,0.001,41548.0,41547.0,2.03052999]
[1644056055266,0.001,41548.0,41547.0,0.0481]
[1644056055267,0.05099999,41548.0,41547.0,0.0481]
[1644056056065,0.25901841,41548.0,41547.0,0.0481]
[1644056056664,0.25901841,41548.0,41537.0,0.4731]
[1644056056665,0.87975097,41548.0,41537.0,0.4731]
[1644056056870,0.87975097,41548.0,41532.0,0.0481]
[1644056056871,0.04999999,41538.0,41532.0,0.0481]
[1644056057065,0.04999999,41538.0,41531.0,0.02115994]
[1644056057267,0.33163,41537.0,41534.0,0.01936135]
[1644056057464,0.08792473,41540.0,41534.0,0.01936135]
[1644056057465,0.38162999,41535.0,41534.0,0.01936135]
[1644056057666,0.59434868,41535.0,41534.0,0.01936135]
[1644056058165,0.86903671,41535.0,41534.0,0.01936135]
[1644056058365,0.59434868,41535.0,41534.0,0.01936135]
[1644056059412,0.59434868,41535.0,41529.0,0.44842777]
[1644056059606,0.26271868,41535.0,41529.0,0.44842777]
[1644056059806,0.26271868,41535.0,41529.0,0.54842777]
[1644056060007,0.04999999,41535.0,41530.0,0.33163]
[1644056060207,0.00075327,41534.0,41530.0,0.33163]
[1644056060907,0.00075327,41534.0,41530.0,0.349687]
[1644056061109,0.00075327,41534.0,41532.0,0.33163]
[1644056061307,0.3452168,41540.0,41532.0,0.33163]
[1644056061509,0.04999999,41540.0,41534.0,0.060183]
[1644056061710,0.02071158,41547.0,41535.0,0.0481]
[1644056061711,0.32071158,41547.0,41535.0,0.0481]
[1644056061915,0.32071158,41547.0,41536.0,0.26642702]
[1644056061916,0.37071157,41547.0,41536.0,0.26642702]
[1644056062111,0.37071157,41547.0,41537.0,0.0481]
[1644056062311,0.07071157,41547.0,41539.0,0.060173]
[1644056062512,0.07071157,41547.0,41541.0,0.060171]
[1644056062760,0.00077619,41544.0,41541.0,0.108271]
[1644056063157,0.04999999,41542.0,41541.0,0.108271]
[1644056063559,0.04999999,41542.0,41541.0,0.060171]
[1644056063758,0.04999999,41542.0,41537.0,0.42660315]
[1644056063759,0.24229864,41541.0,41538.0,0.018053]
[1644056063957,0.24229864,41541.0,41539.0,0.33163]
[1644056066060,0.24229864,41541.0,41540.0,0.0481]
[1644056067507,0.29229863,41541.0,41540.0,0.0481]
[1644056067908,0.24229864,41541.0,41540.0,0.0481]
[1644056068709,0.29229863,41541.0,41540.0,0.0481]
[1644056069109,0.24229864,41541.0,41540.0,0.0481]
[1644056069409,0.00075332,41543.0,41540.0,0.0481]
[1644056069617,0.24,41544.0,41540.0,0.0481]
[1644056070011,0.04999999,41541.0,41540.0,0.0481]
[1644056070255,0.04999999,41541.0,41539.0,0.24]
[1644056070457,0.04999999,41541.0,41540.0,0.33163]
[1644056070656,0.29317577,41541.0,41540.0,0.33163]
[1644056070855,0.24317578,41541.0,41540.0,0.33163]
[1644056071056,0.00075332,41543.0,41540.0,0.33163]
[1644056071255,0.00075332,41543.0,41539.0,0.300175]
[1644056071458,0.00075332,41543.0,41539.0,0.400175]
[1644056072056,0.45195634,41544.0,41539.0,0.400175]
[1644056072260,0.0007532,41543.0,41539.0,0.400175]
[1644056073358,0.45195634,41544.0,41539.0,0.400175]
[1644056073658,0.0007532,41543.0,41539.0,0.400175]
[1644056074306,0.05075319,41543.0,41539.0,0.400175]
[1644056074505,0.04999999,41543.0,41539.0,0.400175]
[1644056074808,0.05075319,41543.0,41539.0,0.400175]
[1644056075608,0.04999999,41543.0,41539.0,0.400175]
[1644056075810,0.0507532,41543.0,41539.0,0.400175]
[1644056076207,0.0507532,41543.0,41539.0,0.300175]
[1644056076608,0.0507532,41543.0,41540.0,0.33163]
[1644056076808,0.04999999,41543.0,41540.0,0.1]
[1644056078056,0.04999999,41543.0,41539.0,0.34]
[1644056078856,0.45270954,41544.0,41539.0,0.34]
[1644056079057,0.45270954,41544.0,41539.0,0.24]
[1644056079258,0.45195634,41544.0,41539.0,0.24]
[1644056079459,0.452661,41544.0,41539.0,0.24]
[1644056080064,0.04999999,41540.0,41539.0,0.24]
[1644056080258,0.04993379,41540.0,41539.0,0.24]
[1644056081706,0.04900505,41540.0,41539.0,0.24]
[1644056083206,0.00070631,41542.0,41539.0,0.24]
[1644056084206,0.45195634,41544.0,41539.0,0.24]
[1644056084609,0.33163,41543.0,41539.0,0.24]
[1644056085008,0.45195634,41544.0,41539.0,0.24]
[1644056085264,0.45195634,41544.0,41537.0,0.22700834]
[1644056086863,0.00074824,41543.0,41537.0,0.22700834]
[1644056087061,0.44870534,41544.0,41537.0,0.22700834]
[1644056090317,0.44370534,41544.0,41537.0,0.22700834]
[1644056093760,0.44370534,41544.0,41535.0,0.20625415]
[1644056093960,0.44370534,41544.0,41534.0,0.20625415]
[1644056094760,0.44370534,41544.0,41536.0,0.21596095]
[1644056094960,0.50389144,41544.0,41534.0,0.20625415]
[1644056095160,0.50389144,41544.0,41535.0,0.20625415]
[1644056095459,0.50389144,41544.0,41534.0,0.20625415]
[1644056095460,0.08851731,41536.0,41534.0,0.20625415]
[1644056095659,0.08851731,41536.0,41532.0,0.0007937]
[1644056095660,0.08851731,41536.0,41532.0,0.20704785]
[1644056096260,0.08851731,41536.0,41531.0,0.20625415]
[1644056096725,0.08851731,41536.0,41531.0,0.20125415]
[1644056096928,0.04900505,41532.0,41531.0,0.20125415]
[1644056097126,0.08851731,41536.0,41531.0,0.20125415]
[1644056097326,0.01320302,41532.0,41531.0,0.20125415]
[1644056098728,0.01320302,41532.0,41530.0,0.2578058]
[1644056108166,0.01320302,41532.0,41529.0,0.2578058]
[1644056108369,0.01320302,41532.0,41530.0,0.33163]
[1644056108569,0.01320302,41532.0,41530.0,0.5894358]
[1644056108973,0.25320302,41532.0,41530.0,0.2578058]
[1644056109170,0.25320302,41532.0,41531.0,0.17408658]
[1644056111070,0.24,41532.0,41531.0,0.17408658]
[1644056111533,0.24,41532.0,41531.0,0.76352238]
[1644056112433,0.24,41532.0,41531.0,0.50571658]
[1644056112629,0.24,41532.0,41531.0,0.76352238]
[1644056112829,0.25320302,41532.0,41531.0,0.43189238]
[1644056113029,0.24,41532.0,41531.0,0.43189238]
[1644056114433,0.25320302,41532.0,41531.0,0.38054962]
[1644056114633,0.25320302,41532.0,41531.0,0.17408658]
[1644056114634,0.55661404,41532.0,41531.0,0.17408658]
[1644056114834,0.88824404,41532.0,41531.0,0.17408658]
[1644056115265,0.07050178,41525.0,41524.0,0.20646304]
[1644056115465,0.07050178,41525.0,41523.0,0.20646304]
[1644056115865,0.01320302,41524.0,41523.0,0.20646304]
[1644056116671,0.01320302,41524.0,41522.0,0.20646304]
[1644056118769,0.01320302,41524.0,41521.0,0.20646304]
[1644056119414,0.01320302,41524.0,41521.0,0.20667292]
[1644056120414,0.28217892,41524.0,41521.0,0.20646304]
[1644056120614,0.28217892,41524.0,41521.0,0.20667292]
[1644056121223,0.34238553,41524.0,41521.0,0.00020988]
[1644056121417,0.34238553,41524.0,41520.0,0.00020988]
[1644056121617,0.01320302,41521.0,41519.0,0.00040988]
[1644056121821,0.01320302,41521.0,41520.0,0.00077245]
[1644056122863,0.01320302,41521.0,41519.0,0.0002]
[1644056123061,0.07341589,41521.0,41519.0,0.0002]
[1644056123263,0.27134709,41520.0,41519.0,0.0013126]
[1644056124263,0.01320302,41521.0,41519.0,0.0013126]
[1644056125265,0.00969021,41521.0,41519.0,0.0013126]
[1644056125664,0.00969021,41520.0,41519.0,0.0013126]
[1644056125864,0.00969021,41520.0,41519.0,0.00152248]
[1644056126064,0.00969021,41520.0,41519.0,0.0013126]
[1644056126739,0.31118057,41520.0,41519.0,0.0013126]
[1644056128338,0.00969021,41520.0,41519.0,0.0013126]
[1644056128541,0.16535206,41529.0,41520.0,0.7]
[1644056128740,0.1174,41530.0,41524.0,0.04999999]
[1644056129140,0.3,41535.0,41525.0,0.060188]
[1644056129339,0.20696703,41533.0,41525.0,0.060188]
[1644056129539,0.31897619,41532.0,41525.0,0.060188]
[1644056129743,0.24,41530.0,41525.0,0.060188]
[1644056130161,0.24,41530.0,41526.0,0.018057]
[1644056130362,0.24,41530.0,41528.0,0.23520248]
[1644056130962,0.24,41530.0,41527.0,0.060189]
[1644056131162,0.24,41530.0,41526.0,0.018058]
[1644056131361,0.24,41530.0,41526.0,0.01880262]
[1644056132164,0.24,41530.0,41527.0,0.19774132]
[1644056142423,0.24,41530.0,41526.0,0.00074561]
[1644056143031,0.24,41530.0,41519.0,0.20650401]
[1644056143032,0.8,41528.0,41519.0,0.20650401]
[1644056143227,0.05,41520.0,41514.0,0.20650401]
[1644056143428,0.05,41520.0,41512.0,0.25811024]
[1644056143429,0.3,41519.0,41512.0,0.20650401]
[1644056143633,0.060225,41517.0,41511.0,0.20650401]
[1644056143828,0.060225,41517.0,41510.0,0.20650401]
[1644056144025,0.18068155,41517.0,41510.0,0.20650401]
[1644056144226,0.18068155,41517.0,41508.0,0.20650401]
[1644056144227,0.52878628,41516.0,41508.0,0.20650401]
[1644056144428,0.52878628,41516.0,41507.0,0.20650401]
[1644056144630,0.72878628,41516.0,41506.0,0.20650401]
[1644056144827,0.060235,41512.0,41505.0,0.20650401]
[1644056145288,0.34065498,41513.0,41506.0,0.3]
[1644056145491,0.34065498,41513.0,41504.0,0.20650401]
[1644056145888,0.060235,41512.0,41507.0,0.00048756]
[1644056146288,0.060235,41510.0,41507.0,0.00048756]
[1644056146489,0.27869615,41509.0,41507.0,0.00048756]
[1644056146891,0.27869615,41509.0,41503.0,0.65586692]
[1644056147089,0.27869615,41509.0,41506.0,0.00079022]
[1644056147890,0.06023079,41508.0,41506.0,0.00079022]
[1644056148095,0.2660456,41507.0,41503.0,0.42969323]
[1644056148392,0.07801998,41507.0,41505.0,0.00079023]
[1644056148690,0.06023079,41508.0,41505.0,0.00079023]
[1644056149319,0.34761041,41510.0,41503.0,0.22318922]
[1644056149518,0.34761041,41510.0,41504.0,0.00048536]
[1644056150418,0.40784141,41510.0,41503.0,0.22318922]
[1644056150623,0.40784141,41510.0,41505.0,0.00078873]
[1644056151618,0.40784141,41510.0,41503.0,0.22318922]
[1644056151819,0.46807641,41510.0,41505.0,0.00078872]
[1644056152018,0.64784141,41510.0,41505.0,0.00078872]
[1644056152867,0.64784141,41510.0,41503.0,0.22318922]
[1644056153069,0.64784141,41510.0,41505.0,0.00078872]
[1644056153969,0.64784141,41510.0,41503.0,0.22318922]
[1644056154170,0.64784141,41510.0,41505.0,0.00078872]
[1644056154370,0.33163,41509.0,41505.0,0.00078872]
[1644056154776,0.4970455,41509.0,41505.0,0.00078872]
[1644056154970,0.33163,41509.0,41505.0,0.00078872]
[1644056155171,0.4970455,41509.0,41504.0,0.21678909]
[1644056155471,0.1654155,41509.0,41505.0,0.00078873]
[1644056155876,0.58761041,41510.0,41505.0,0.00078873]
[1644056156074,0.33163,41509.0,41505.0,0.00078873]
[1644056156522,0.060233,41509.0,41501.0,0.02]
[1644056156721,0.33163,41507.0,41505.0,0.00078873]
[1644056156921,0.26160763,41506.0,41505.0,0.00078873]
[1644056157822,0.26160763,41506.0,41501.0,0.02]
[1644056157823,0.32203313,41506.0,41501.0,0.02]
[1644056158022,0.28302217,41509.0,41501.0,0.06999999]
[1644056158426,0.28302217,41509.0,41502.0,0.04999999]
[1644056158822,0.34325417,41509.0,41502.0,0.05020726]
[1644056159023,0.34325417,41509.0,41505.0,0.24526437]
[1644056159423,0.34325417,41509.0,41502.0,0.00020727]
[1644056159622,0.34325417,41509.0,41501.0,0.02]
[1644056160267,0.28302217,41509.0,41501.0,0.02]
[1644056160468,0.38302217,41509.0,41502.0,0.22415839]
[1644056160669,0.38302217,41509.0,41502.0,0.22436566]
[1644056160868,0.34325184,41509.0,41502.0,0.00020727]
[1644056161075,0.49325184,41509.0,41501.0,0.02]
[1644056161271,0.33163,41507.0,41501.0,0.02]
[1644056161468,0.32160178,41506.0,41501.0,0.02]
[1644056161669,0.33163,41505.0,41503.0,0.00077675]
[1644056161970,0.30447335,41504.0,41503.0,0.00077675]
[1644056162569,0.30447335,41504.0,41502.0,0.00020727]
[1644056162768,0.30447335,41504.0,41501.0,0.02076637]
[1644056162968,0.30447335,41504.0,41501.0,0.02097364]
[1644056163169,0.33163,41503.0,41501.0,0.02076637]
[1644056163567,0.36471408,41504.0,41501.0,0.02076637]
[1644056163772,0.33163,41503.0,41501.0,0.02]
[1644056164319,0.060242,41503.0,41501.0,0.02]
[1644056164522,0.33163,41502.0,41501.0,0.02]
[1644056164719,0.060242,41503.0,41501.0,0.02]
[1644056165322,0.33163,41502.0,41501.0,0.02]
[1644056165525,0.33163,41502.0,41501.0,0.02020727]
[1644056165724,0.36471408,41504.0,41501.0,0.02]
[1644056165924,0.33163,41503.0,41501.0,0.02020727]
[1644056166124,0.26264705,41502.0,41501.0,0.02]
[1644056166326,0.59427705,41502.0,41501.0,0.02]
[1644056167123,0.33163,41502.0,41501.0,0.06999999]
[1644056167326,0.33163,41502.0,41501.0,0.02]
[1644056167524,1.98,41501.0,41500.0,0.00020727]
[1644056167767,2.31163,41501.0,41499.0,0.25904136]
[1644056167968,2.208767,41501.0,41499.0,0.25883409]
[1644056168268,2.31163,41501.0,41499.0,0.25883409]
[1644056168466,1.62222058,41501.0,41499.0,0.25883409]
[1644056168669,1.62222058,41501.0,41499.0,0.25808991]
[1644056169066,1.62222058,41501.0,41499.0,0.00031164]
[1644056170970,0.26819393,41500.0,41499.0,0.00031164]
[1644056171424,1.51935758,41501.0,41499.0,0.00031164]
[1644056171620,0.59770142,41500.0,41499.0,0.00031164]
[1644056171820,1.99968836,41499.0,41498.0,0.00200473]
[1644056172019,1.99968836,41499.0,41498.0,0.00242074]
[1644056172223,1.99968836,41499.0,41498.0,0.22068026]
[1644056173023,1.99968836,41499.0,41498.0,0.00172328]
[1644056175176,2.57131836,41499.0,41498.0,0.00172328]
[1644056175368,1.68814078,41499.0,41498.0,0.00172328]
[1644056180624,2.01977078,41499.0,41498.0,0.00172328]
[1644056180826,1.68814078,41499.0,41498.0,0.00172328]
[1644056182425,2.01977078,41499.0,41498.0,0.00172328]
[1644056182672,1.91690778,41499.0,41498.0,0.00172328]
[1644056182867,2.01977078,41499.0,41498.0,0.00172328]
[1644056183369,1.68814078,41499.0,41498.0,0.00172328]
[1644056183771,1.68814078,41499.0,41498.0,0.05172327]
[1644056184369,1.68814078,41499.0,41498.0,0.00172328]
[1644056185270,2.01977078,41499.0,41498.0,0.00172328]
[1644056185470,1.68814078,41499.0,41498.0,0.00172328]
[1644056187319,2.01977078,41499.0,41498.0,0.00172328]
[1644056187720,2.01977078,41499.0,41498.0,0.00124656]
[1644056187721,1.68814078,41499.0,41498.0,0.00124656]
[1644056187927,2.06385907,41499.0,41498.0,0.00124656]
[1644056188123,2.00361007,41499.0,41498.0,0.00124656]
[1644056190172,2.33524007,41499.0,41498.0,0.00124656]
[1644056190571,2.23237707,41499.0,41498.0,0.00124656]
[1644056190767,2.00361007,41499.0,41498.0,0.00124656]
[1644056192369,1.85361007,41499.0,41498.0,0.00124656]
[1644056193770,2.00361007,41499.0,41498.0,0.00124656]
[1644056194220,2.33524007,41499.0,41498.0,0.00124656]
[1644056194421,2.00361007,41499.0,41498.0,0.00124656]
[1644056197874,2.33524007,41499.0,41498.0,0.00124656]
[1644056198073,2.23237707,41499.0,41498.0,0.00124656]
[1644056198276,2.00361007,41499.0,41498.0,0.00124656]
[1644056199676,0.00130147,41497.0,41495.0,0.0011]
[1644056199881,0.33163,41496.0,41495.0,0.0011]
[1644056200277,0.43163,41496.0,41495.0,0.0011]
[1644056200477,0.72399299,41496.0,41495.0,0.0011]
[1644056200678,0.59709929,41496.0,41495.0,0.0011]
[1644056204724,0.59709929,41496.0,41492.0,0.0004016]
[1644056204725,0.38163,41494.0,41492.0,0.0004016]
[1644056204927,0.3,41493.0,41492.0,0.0004016]
[1644056205190,0.3481,41493.0,41492.0,0.0004016]
[1644056205373,0.83436955,41492.0,41482.0,0.03769275]
[1644056205576,0.33163,41490.0,41482.0,0.00250816]
[1644056205774,0.33163,41488.0,41482.0,0.00250816]
[1644056205978,0.33163,41486.0,41482.0,0.00250816]
[1644056206178,1.08163,41484.0,41482.0,0.000688]
[1644056206376,0.3,41483.0,41482.0,0.000688]
[1644056206775,0.0481,41483.0,41482.0,0.000688]
[1644056207376,0.0481,41483.0,41480.0,0.00074146]
[1644056207577,0.33163,41482.0,41480.0,0.00074146]
[1644056207779,0.0481,41481.0,41480.0,0.00074146]
[1644056207976,0.37973,41481.0,41480.0,0.00074146]
[1644056208275,0.52973,41481.0,41475.0,0.002]
[1644056208576,0.52973,41481.0,41478.0,0.00074148]
[1644056208577,0.44753728,41480.0,41478.0,0.00074148]
[1644056208776,0.75285971,41479.0,41478.0,0.00074148]
[1644056209630,0.05,41478.0,41475.0,0.002]
[1644056209834,0.05,41478.0,41476.0,0.0007415]
[1644056209835,0.39567966,41477.0,41476.0,0.0007415]
[1644056210030,0.68218144,41477.0,41476.0,0.0007415]
[1644056210831,0.74247144,41477.0,41475.0,0.002]
[1644056211030,0.60843723,41476.0,41475.0,0.002]
[1644056211631,0.65843723,41476.0,41475.0,0.002]
[1644056211835,0.331813,41476.0,41475.0,0.002]
[1644056212032,0.72073616,41484.0,41475.0,0.002]
[1644056212233,1.05254916,41484.0,41483.0,0.04999999]
[1644056212431,0.831813,41484.0,41483.0,0.04999999]
[1644056212674,0.49734581,41484.0,41483.0,0.04999999]
[1644056212976,0.331813,41484.0,41483.0,0.04999999]
[1644056213569,0.331813,41484.0,41481.0,0.00073905]
[1644056214067,0.331813,41484.0,41483.0,0.04999999]
[1644056215070,0.331813,41484.0,41481.0,0.00073921]
[1644056215673,0.08742038,41485.0,41475.0,0.002]
[1644056215868,0.331813,41484.0,41480.0,0.00073922]
[1644056216069,0.65617049,41484.0,41480.0,0.00073922]
[1644056216269,0.45238303,41483.0,41480.0,0.00073922]
[1644056216521,0.331813,41481.0,41480.0,0.00073922]
[1644056216721,0.63146609,41481.0,41475.0,0.002]
[1644056216925,0.060291,41480.0,41478.0,0.00073924]
[1644056217123,0.752408,41479.0,41478.0,0.00073924]
[1644056217323,0.852408,41479.0,41478.0,0.00073924]
[1644056217522,0.7179416,41479.0,41478.0,0.00073924]
[1644056217923,0.7179416,41479.0,41475.0,0.002]
[1644056218122,0.110295,41478.0,41475.0,0.002]
[1644056218326,0.060297,41476.0,41475.0,0.002]
[1644056218523,0.47405645,41476.0,41475.0,0.002]
[1644056218724,0.52405645,41476.0,41475.0,0.002]
[1644056219125,0.81690288,41476.0,41475.0,0.002]
[1644056219728,1.05690288,41476.0,41475.0,0.002]
[1644056220177,1.22243648,41476.0,41475.0,0.002]
[1644056220373,1.22243648,41476.0,41466.0,0.05]
[1644056220374,0.75,41475.0,41466.0,0.05]
[1644056220579,0.12060763,41471.0,41466.0,0.05]
[1644056220774,0.42108753,41469.0,41466.0,0.05]
[1644056220978,0.42108753,41469.0,41466.0,0.0502049]
[1644056221192,0.331813,41468.0,41466.0,0.0502049]
[1644056221374,0.0481,41467.0,41466.0,0.05]
[1644056221573,0.379913,41467.0,41466.0,0.05]
[1644056221773,0.550527,41467.0,41446.0,0.36138201]
[1644056221979,0.04999999,41457.0,41455.0,0.00033344]
[1644056222176,0.06975576,41456.0,41455.0,0.00033344]
[1644056222376,0.04999999,41457.0,41455.0,0.00033344]
[1644056222777,0.11031333,41457.0,41455.0,0.00033344]
[1644056222973,0.12063334,41457.0,41455.0,0.00033344]
[1644056224222,0.06031334,41457.0,41455.0,0.00033344]
[1644056224523,0.62061293,41462.0,41455.0,0.00033344]
[1644056224524,0.5,41462.0,41455.0,0.00033344]
[1644056224721,0.5,41462.0,41455.0,0.00053835]
[1644056225223,0.26171328,41461.0,41455.0,0.00053835]
[1644056225423,0.04999999,41460.0,41455.0,0.00053835]
[1644056225622,0.5,41461.0,41455.0,0.00053835]
[1644056226425,0.060299,41467.0,41455.0,0.00053835]